[Event "Early-Titled-Tuesday-Blitz-August-29-2023"]
[Site "Chess.com"]
[Date "2023.08.29"]
[Round "5"]
[White "MatthewG-p4p"]
[Black "Let_it_be_1"]
[Result "0-1"]
[WhiteElo "2843"]
[BlackElo "2637"]
[TimeControl "180+1"]
[EndTime "8:56:31 PDT"]
[Termination "Let_it_be_1 won by resignation"]

1. f4 {[%clk 0:03:00.9]} 1... d5 {[%clk 0:02:58.6]} 2. Nf3 {[%clk 0:03:01.1]}
2... Nf6 {[%clk 0:02:58.5]} 3. g3 {[%clk 0:03:01.1]} 3... g6 {[%clk 0:02:58.6]}
4. Bg2 {[%clk 0:03:01.7]} 4... Bg7 {[%clk 0:02:59.1]} 5. O-O {[%clk 0:03:02.4]}
5... O-O {[%clk 0:02:59.7]} 6. d3 {[%clk 0:03:03.3]} 6... Nbd7 {[%clk
0:02:58.3]} 7. Nc3 {[%clk 0:03:02.9]} 7... Re8 {[%clk 0:02:48.1]} 8. e4 {[%clk
0:03:02.5]} 8... dxe4 {[%clk 0:02:47]} 9. dxe4 {[%clk 0:03:03.4]} 9... e5 {[%clk
0:02:47.4]} 10. f5 {[%clk 0:02:49]} 10... Nc5 {[%clk 0:02:41.8]} 11. Qe1 {[%clk
0:02:46.3]} 11... gxf5 {[%clk 0:02:37.4]} 12. Nh4 {[%clk 0:02:30.9]} 12... Nfxe4
{[%clk 0:02:22.6]} 13. Nxf5 {[%clk 0:02:28]} 13... Bxf5 {[%clk 0:02:07.1]} 14.
Rxf5 {[%clk 0:02:28.9]} 14... Nxc3 {[%clk 0:02:06.2]} 15. bxc3 {[%clk
0:01:52.7]} 15... c6 {[%clk 0:02:02.6]} 16. Be3 {[%clk 0:01:49.3]} 16... Ne6
{[%clk 0:01:49.1]} 17. Be4 {[%clk 0:01:49.4]} 17... Nf8 {[%clk 0:01:42.6]} 18.
Qe2 {[%clk 0:01:48.7]} 18... Ng6 {[%clk 0:01:24.4]} 19. Raf1 {[%clk 0:01:48.2]}
19... Qd7 {[%clk 0:01:11.6]} 20. h4 {[%clk 0:01:42.8]} 20... Re7 {[%clk
0:01:04.7]} 21. h5 {[%clk 0:01:32.4]} 21... Nf4 {[%clk 0:01:04.5]} 22. gxf4
{[%clk 0:01:14.1]} 22... exf4 {[%clk 0:01:02.4]} 23. R5xf4 {[%clk 0:01:12]}
23... Rae8 {[%clk 0:01:01.9]} 24. Qg2 {[%clk 0:01:12]} 24... Kh8 {[%clk
0:00:49.6]} 25. Rg4 {[%clk 0:01:11.8]} 25... Bxc3 {[%clk 0:00:43.8]} 26. Bf5
{[%clk 0:01:06.6]} 26... Qd6 {[%clk 0:00:32.2]} 27. Bf4 {[%clk 0:00:56.7]} 27...
Qc5+ {[%clk 0:00:30.7]} 28. Kh1 {[%clk 0:00:23.2]} 28... Qxf5 {[%clk 0:00:30.4]}
29. Rg3 {[%clk 0:00:15.5]} 29... Re1 {[%clk 0:00:23.2]} 30. Rxc3 {[%clk
0:00:03.2]} 30... Qxf4 {[%clk 0:00:23]} 31. Rf3 {[%clk 0:00:03.2]} 31... Qh4+
{[%clk 0:00:20.6]} 32. Rh3 {[%clk 0:00:03.5]} 32... Rxf1+ {[%clk 0:00:18.7]} 33.
Qxf1 {[%clk 0:00:04.4]} 33... Re1 {[%clk 0:00:17.4]} 34. Rxh4 {[%clk 0:00:04.5]}
34... Rxf1+ {[%clk 0:00:17.8]} 35. Kg2 {[%clk 0:00:05.4]} 35... Rc1 {[%clk
0:00:18]} 36. Rc4 {[%clk 0:00:06.1]} 36... Kg7 {[%clk 0:00:18.1]} 37. Kf2 {[%clk
0:00:05.3]} 37... f5 {[%clk 0:00:17.9]} 38. Rc5 {[%clk 0:00:05.4]} 38... Kf6
{[%clk 0:00:17.7]} 39. a4 {[%clk 0:00:05.9]} 39... h6 {[%clk 0:00:14.9]} 40. Ke3
{[%clk 0:00:06.1]} 40... Rh1 {[%clk 0:00:14.3]} 41. Rc4 {[%clk 0:00:04]} 41...
Rxh5 {[%clk 0:00:13.8]} 42. Rb4 {[%clk 0:00:04.6]} 42... b6 {[%clk 0:00:13.4]}
43. a5 {[%clk 0:00:05.3]} 43... b5 {[%clk 0:00:13.2]} 44. Rb1 {[%clk 0:00:04.8]}
44... Rh3+ {[%clk 0:00:12.4]} 45. Kf4 {[%clk 0:00:04.6]} 45... Rh4+ {[%clk
0:00:11.9]} 46. Kf3 {[%clk 0:00:04.8]} 46... Ra4 {[%clk 0:00:11.6]} 47. Rd1
{[%clk 0:00:04.2]} 47... Rxa5 {[%clk 0:00:10.5]} 48. Rd6+ {[%clk 0:00:04.6]}
48... Kg5 {[%clk 0:00:10.8]} 49. Rxc6 {[%clk 0:00:05.2]} 49... Ra3+ {[%clk
0:00:11.4]} 50. Kf2 {[%clk 0:00:04.8]} 50... b4 {[%clk 0:00:11.3]} 51. Rc4
{[%clk 0:00:03.9]} 51... a5 {[%clk 0:00:11.1]} 52. Rc7 {[%clk 0:00:04.2]} 52...
Rc3 {[%clk 0:00:10.9]} 53. Rg7+ {[%clk 0:00:03.4]} 53... Kf4 {[%clk 0:00:11.1]}
54. Ra7 {[%clk 0:00:04.3]} 54... Rxc2+ {[%clk 0:00:11.3]} 55. Ke1 {[%clk
0:00:05.2]} 55... b3 {[%clk 0:00:11.5]} 56. Kd1 {[%clk 0:00:04.5]} 56... Ra2
{[%clk 0:00:09.7]} 57. Rb7 {[%clk 0:00:04.7]} 57... a4 {[%clk 0:00:10]} 58. Kc1
{[%clk 0:00:05]} 58... Kf3 {[%clk 0:00:09.7]} 59. Kb1 {[%clk 0:00:05.5]} 59...
f4 {[%clk 0:00:09.4]} 60. Rh7 {[%clk 0:00:06.1]} 60... Re2 {[%clk 0:00:08.2]}
61. Rxh6 {[%clk 0:00:06.1]} 61... a3 {[%clk 0:00:08.7]} 62. Rh3+ {[%clk
0:00:06.4]} 62... Kg2 {[%clk 0:00:08]} 63. Rxb3 {[%clk 0:00:07.3]} 63... a2+
{[%clk 0:00:08.4]} 64. Ka1 {[%clk 0:00:07.4]} 64... f3 {[%clk 0:00:09.3]} 65.
Rxf3 {[%clk 0:00:08]} 65... Re1+ {[%clk 0:00:08.4]} 66. Kxa2 {[%clk 0:00:04.6]}
66... Kxf3 {[%clk 0:00:09.3]} 0-1

[Event "Early-Titled-Tuesday-Blitz-August-29-2023"]
[Site "Chess.com"]
[Date "2023.08.29"]
[Round "5"]
[White "CarlosjPineror"]
[Black "mapleaff"]
[Result "0-1"]
[WhiteElo "2415"]
[BlackElo "2291"]
[TimeControl "180+1"]
[EndTime "8:56:38 PDT"]
[Termination "mapleaff won by checkmate"]

1. e4 {[%clk 0:02:59.8]} 1... e5 {[%clk 0:02:56.6]} 2. Nf3 {[%clk 0:02:59.4]}
2... Nc6 {[%clk 0:02:56.1]} 3. Bb5 {[%clk 0:02:58.9]} 3... a6 {[%clk 0:02:55.6]}
4. Ba4 {[%clk 0:02:58.5]} 4... Nf6 {[%clk 0:02:55.2]} 5. d3 {[%clk 0:02:58.3]}
5... b5 {[%clk 0:02:54.3]} 6. Bb3 {[%clk 0:02:58]} 6... Bc5 {[%clk 0:02:55.2]}
7. c3 {[%clk 0:02:56.8]} 7... d6 {[%clk 0:02:52.9]} 8. h3 {[%clk 0:02:55.8]}
8... h6 {[%clk 0:02:49.6]} 9. O-O {[%clk 0:02:55]} 9... O-O {[%clk 0:02:48.7]}
10. a4 {[%clk 0:02:50.4]} 10... Rb8 {[%clk 0:02:45.9]} 11. axb5 {[%clk
0:02:49.8]} 11... axb5 {[%clk 0:02:46.8]} 12. Nbd2 {[%clk 0:02:49.9]} 12... b4
{[%clk 0:02:28.7]} 13. Re1 {[%clk 0:02:46.1]} 13... bxc3 {[%clk 0:02:27.4]} 14.
bxc3 {[%clk 0:02:47]} 14... Be6 {[%clk 0:02:21.6]} 15. Bc4 {[%clk 0:02:27.3]}
15... Qd7 {[%clk 0:01:40.8]} 16. Bxe6 {[%clk 0:02:27.1]} 16... fxe6 {[%clk
0:01:38.8]} 17. Nc4 {[%clk 0:02:27.4]} 17... Rf7 {[%clk 0:01:25.9]} 18. d4
{[%clk 0:02:27]} 18... exd4 {[%clk 0:01:24.7]} 19. cxd4 {[%clk 0:02:27.9]} 19...
Bb4 {[%clk 0:01:25.2]} 20. Re2 {[%clk 0:02:22.8]} 20... Rbf8 {[%clk 0:01:15.8]}
21. d5 {[%clk 0:02:22.5]} 21... exd5 {[%clk 0:01:07.9]} 22. exd5 {[%clk
0:02:23.4]} 22... Ne7 {[%clk 0:01:02.4]} 23. Ne3 {[%clk 0:02:23.6]} 23... Bc5
{[%clk 0:00:57.6]} 24. Ra5 {[%clk 0:02:23.1]} 24... Bb6 {[%clk 0:00:56]} 25. Ra3
{[%clk 0:02:07.2]} 25... Ne4 {[%clk 0:00:44.6]} 26. Qa4 {[%clk 0:01:50.4]} 26...
Qxa4 {[%clk 0:00:38.8]} 27. Rxa4 {[%clk 0:01:51.3]} 27... Nc3 {[%clk 0:00:39.4]}
28. Rea2 {[%clk 0:01:47.2]} 28... Nxa4 {[%clk 0:00:37.8]} 29. Rxa4 {[%clk
0:01:47]} 29... Bxe3 {[%clk 0:00:37]} 30. Bxe3 {[%clk 0:01:47.9]} 30... Nxd5
{[%clk 0:00:37.8]} 31. Bd2 {[%clk 0:01:47.2]} 31... c5 {[%clk 0:00:32]} 32. Ra6
{[%clk 0:01:41.1]} 32... Rd7 {[%clk 0:00:29.2]} 33. Ne1 {[%clk 0:01:40.3]} 33...
Rc8 {[%clk 0:00:19.5]} 34. Kf1 {[%clk 0:01:40.4]} 34... c4 {[%clk 0:00:19.2]}
35. Ke2 {[%clk 0:01:40.9]} 35... c3 {[%clk 0:00:19.1]} 36. Bc1 {[%clk
0:01:41.4]} 36... Re7+ {[%clk 0:00:18.3]} 37. Kd1 {[%clk 0:01:40.9]} 37... Re6
{[%clk 0:00:07.8]} 38. Nd3 {[%clk 0:01:40.7]} 38... c2+ {[%clk 0:00:06.3]} 39.
Kd2 {[%clk 0:01:40.3]} 39... Nc3 {[%clk 0:00:04.6]} 40. Kxc2 {[%clk 0:01:34.5]}
40... Ne2+ {[%clk 0:00:03.6]} 41. Kd2 {[%clk 0:01:34.3]} 41... Nxc1 {[%clk
0:00:04.1]} 42. Nxc1 {[%clk 0:01:35.2]} 42... Rf6 {[%clk 0:00:04.3]} 43. Nd3
{[%clk 0:01:35.3]} 43... Re8 {[%clk 0:00:03.5]} 44. f4 {[%clk 0:01:35]} 44...
Rfe6 {[%clk 0:00:02.9]} 45. g4 {[%clk 0:01:35.2]} 45... Re2+ {[%clk 0:00:03.3]}
46. Kc3 {[%clk 0:01:35.7]} 46... R2e3 {[%clk 0:00:04.2]} 47. Rxd6 {[%clk
0:01:33.7]} 47... Rc8+ {[%clk 0:00:04.6]} 48. Kd4 {[%clk 0:01:33.7]} 48... Rxh3
{[%clk 0:00:05.5]} 49. Ne5 {[%clk 0:01:33.8]} 49... Rf8 {[%clk 0:00:04.8]} 50.
Ke4 {[%clk 0:01:33.2]} 50... Rh1 {[%clk 0:00:04.8]} 51. Rd7 {[%clk 0:01:33]}
51... Re1+ {[%clk 0:00:05.2]} 52. Kd5 {[%clk 0:01:26.6]} 52... Rd1+ {[%clk
0:00:05.2]} 53. Ke4 {[%clk 0:01:24.5]} 53... Rxd7 {[%clk 0:00:06.1]} 54. Nxd7
{[%clk 0:01:25.4]} 54... Re8+ {[%clk 0:00:06.4]} 55. Kf5 {[%clk 0:01:25.1]}
55... Re7 {[%clk 0:00:06.3]} 56. Ne5 {[%clk 0:01:25.5]} 56... Ra7 {[%clk
0:00:05]} 57. Kg6 {[%clk 0:01:23.7]} 57... Ra6+ {[%clk 0:00:04.8]} 58. Kh5
{[%clk 0:01:23.8]} 58... Ra5 {[%clk 0:00:04.3]} 59. Kg6 {[%clk 0:01:22.6]} 59...
Ra1 {[%clk 0:00:03.1]} 60. f5 {[%clk 0:01:21.8]} 60... Rg1 {[%clk 0:00:02.5]}
61. Kh5 {[%clk 0:01:20.4]} 61... Rh1+ {[%clk 0:00:02.5]} 62. Kg6 {[%clk
0:01:20.4]} 62... Rg1 {[%clk 0:00:03.2]} 63. Kh5 {[%clk 0:01:20.3]} 63... Kh7
{[%clk 0:00:03.6]} 64. Kh4 {[%clk 0:01:19.5]} 64... Rh1+ {[%clk 0:00:03.8]} 65.
Kg3 {[%clk 0:01:19.7]} 65... Rg1+ {[%clk 0:00:04.7]} 66. Kf2 {[%clk 0:01:19.8]}
66... Ra1 {[%clk 0:00:05.6]} 67. Ng6 {[%clk 0:01:20.6]} 67... Ra4 {[%clk
0:00:05.7]} 68. Kf3 {[%clk 0:01:20.6]} 68... Ra3+ {[%clk 0:00:06.6]} 69. Kf4
{[%clk 0:01:20.5]} 69... Ra4+ {[%clk 0:00:07.5]} 70. Kg3 {[%clk 0:01:21.1]}
70... Kg8 {[%clk 0:00:08.4]} 71. Ne5 {[%clk 0:01:20.6]} 71... Ra5 {[%clk
0:00:08.5]} 72. Kf4 {[%clk 0:01:20.6]} 72... Kf8 {[%clk 0:00:08.8]} 73. Ke4
{[%clk 0:01:18]} 73... Ra4+ {[%clk 0:00:09.1]} 74. Kf3 {[%clk 0:01:18.4]} 74...
Ke7 {[%clk 0:00:10]} 75. Kg3 {[%clk 0:01:13.2]} 75... Kf6 {[%clk 0:00:10.4]} 76.
Nf3 {[%clk 0:01:13.8]} 76... h5 {[%clk 0:00:08.1]} 77. gxh5 {[%clk 0:01:10.2]}
77... Kxf5 {[%clk 0:00:09]} 78. Kh3 {[%clk 0:01:09.4]} 78... Ra3 {[%clk
0:00:07.6]} 79. Kg3 {[%clk 0:01:09.3]} 79... Rc3 {[%clk 0:00:07.6]} 80. Kf2
{[%clk 0:01:06.6]} 80... Kf4 {[%clk 0:00:07.6]} 81. Nh4 {[%clk 0:01:06.9]} 81...
Rc2+ {[%clk 0:00:05.8]} 82. Ke1 {[%clk 0:01:05.6]} 82... Rh2 {[%clk 0:00:06.1]}
83. Ng6+ {[%clk 0:01:05.1]} 83... Kg5 {[%clk 0:00:06.5]} 84. Ne7 {[%clk
0:01:04.9]} 84... Rxh5 {[%clk 0:00:06.2]} 85. Nd5 {[%clk 0:01:04.9]} 85... Kf5
{[%clk 0:00:05.9]} 86. Ne3+ {[%clk 0:01:05.1]} 86... Ke4 {[%clk 0:00:06.4]} 87.
Ng2 {[%clk 0:01:05.7]} 87... Kf3 {[%clk 0:00:05.4]} 88. Kf1 {[%clk 0:01:05.1]}
88... Rh1# {[%clk 0:00:05.6]} 0-1

[Event "Early-Titled-Tuesday-Blitz-August-29-2023"]
[Site "Chess.com"]
[Date "2023.08.29"]
[Round "5"]
[White "FGHSMN"]
[Black "skkeyan1309"]
[Result "0-1"]
[WhiteElo "2930"]
[BlackElo "2714"]
[TimeControl "180+1"]
[EndTime "8:56:44 PDT"]
[Termination "skkeyan1309 won by resignation"]

1. e4 {[%clk 0:02:59.6]} 1... c5 {[%clk 0:03:00]} 2. Nf3 {[%clk 0:02:59.4]} 2...
d6 {[%clk 0:02:59.9]} 3. d4 {[%clk 0:03:00]} 3... cxd4 {[%clk 0:03:00.8]} 4.
Nxd4 {[%clk 0:03:00.9]} 4... Nf6 {[%clk 0:03:01.2]} 5. Nc3 {[%clk 0:03:01.6]}
5... a6 {[%clk 0:03:01.5]} 6. h3 {[%clk 0:03:02.2]} 6... e5 {[%clk 0:02:53.2]}
7. Nf3 {[%clk 0:03:01.8]} 7... Nbd7 {[%clk 0:02:51]} 8. g4 {[%clk 0:03:00.1]}
8... Nc5 {[%clk 0:02:47]} 9. Qe2 {[%clk 0:02:47.7]} 9... b5 {[%clk 0:02:41.9]}
10. Bg5 {[%clk 0:02:42.5]} 10... Bb7 {[%clk 0:02:36.7]} 11. O-O-O {[%clk
0:02:41.6]} 11... Be7 {[%clk 0:02:27.4]} 12. Bxf6 {[%clk 0:02:39.7]} 12... Bxf6
{[%clk 0:02:28.3]} 13. Nd5 {[%clk 0:02:40.2]} 13... O-O {[%clk 0:02:03.4]} 14.
h4 {[%clk 0:02:35.7]} 14... Bxd5 {[%clk 0:01:44.6]} 15. Rxd5 {[%clk 0:02:34.2]}
15... Ne6 {[%clk 0:01:44.3]} 16. Rd2 {[%clk 0:02:28.8]} 16... Nf4 {[%clk
0:01:42.6]} 17. Qe3 {[%clk 0:02:27.6]} 17... Qc7 {[%clk 0:01:28.1]} 18. g5
{[%clk 0:02:25.8]} 18... Be7 {[%clk 0:01:28.6]} 19. Kb1 {[%clk 0:02:24.5]} 19...
Rac8 {[%clk 0:01:25.5]} 20. Bd3 {[%clk 0:02:22.3]} 20... Rfd8 {[%clk 0:01:12.5]}
21. Rhd1 {[%clk 0:02:17.7]} 21... Bf8 {[%clk 0:01:08.8]} 22. Bf1 {[%clk
0:02:11.4]} 22... d5 {[%clk 0:00:42.2]} 23. exd5 {[%clk 0:02:10.5]} 23... Rxd5
{[%clk 0:00:42.9]} 24. Qe4 {[%clk 0:02:01.6]} 24... Rxd2 {[%clk 0:00:32.8]} 25.
Rxd2 {[%clk 0:02:02.5]} 25... Rd8 {[%clk 0:00:31.5]} 26. Rxd8 {[%clk 0:01:49.4]}
26... Qxd8 {[%clk 0:00:32.4]} 27. Bd3 {[%clk 0:01:48.8]} 27... Nxd3 {[%clk
0:00:27.3]} 28. cxd3 {[%clk 0:01:46.8]} 28... Bd6 {[%clk 0:00:25.7]} 29. h5
{[%clk 0:01:40.2]} 29... g6 {[%clk 0:00:16.2]} 30. h6 {[%clk 0:01:33.8]} 30...
Kf8 {[%clk 0:00:13.9]} 31. Kc2 {[%clk 0:01:32.2]} 31... Qc8+ {[%clk 0:00:12.7]}
32. Kd2 {[%clk 0:01:30.1]} 32... Qc5 {[%clk 0:00:12.9]} 33. Ke2 {[%clk
0:01:13.4]} 33... Qc2+ {[%clk 0:00:06.8]} 34. Kf1 {[%clk 0:01:11.9]} 34... Bc5
{[%clk 0:00:07.4]} 35. Qa8+ {[%clk 0:00:47.9]} 35... Ke7 {[%clk 0:00:07.1]} 36.
Qb7+ {[%clk 0:00:48.5]} 36... Kd8 {[%clk 0:00:07.6]} 37. Qb8+ {[%clk 0:00:48.4]}
37... Kd7 {[%clk 0:00:08.1]} 38. Nxe5+ {[%clk 0:00:34.7]} 38... Ke6 {[%clk
0:00:08.5]} 39. Qe8+ {[%clk 0:00:24.8]} 39... Kf5 {[%clk 0:00:07.8]} 40. Qxf7+
{[%clk 0:00:13.2]} 40... Kxe5 {[%clk 0:00:08.3]} 41. Qf6+ {[%clk 0:00:13]} 41...
Kd5 {[%clk 0:00:08.9]} 42. Qf3+ {[%clk 0:00:13.1]} 42... Kd6 {[%clk 0:00:07.6]}
43. Qf6+ {[%clk 0:00:13.5]} 43... Kc7 {[%clk 0:00:07.8]} 44. Qf7+ {[%clk
0:00:13.8]} 44... Kb6 {[%clk 0:00:08.2]} 45. Kg2 {[%clk 0:00:11.8]} 45... Qxd3
{[%clk 0:00:06.7]} 46. Qxh7 {[%clk 0:00:11.8]} 46... Qe4+ {[%clk 0:00:07.3]} 47.
Kf1 {[%clk 0:00:11.5]} 47... Qd4 {[%clk 0:00:06.4]} 48. Qxg6+ {[%clk 0:00:11.5]}
48... Ka5 {[%clk 0:00:06.5]} 49. Qf5 {[%clk 0:00:11.8]} 49... Qxb2 {[%clk
0:00:05.9]} 50. g6 {[%clk 0:00:11.5]} 50... Qc1+ {[%clk 0:00:05.4]} 51. Kg2
{[%clk 0:00:12.1]} 51... Qxh6 {[%clk 0:00:05.7]} 52. Qxc5 {[%clk 0:00:12.6]}
52... Qxg6+ {[%clk 0:00:06.1]} 53. Kh2 {[%clk 0:00:10.5]} 53... Qh6+ {[%clk
0:00:05.5]} 54. Kg3 {[%clk 0:00:11]} 54... Qg6+ {[%clk 0:00:05.6]} 55. Kf4
{[%clk 0:00:10.9]} 55... Qf7+ {[%clk 0:00:05.9]} 56. Ke3 {[%clk 0:00:10.9]}
56... Qxa2 {[%clk 0:00:06.1]} 57. f4 {[%clk 0:00:11.4]} 57... Ka4 {[%clk
0:00:03.5]} 58. f5 {[%clk 0:00:11]} 58... b4 {[%clk 0:00:02.6]} 59. f6 {[%clk
0:00:10.9]} 59... Qb3+ {[%clk 0:00:03.3]} 60. Kf4 {[%clk 0:00:10.2]} 60... Qe6
{[%clk 0:00:03.1]} 61. Qe5 {[%clk 0:00:06.6]} 61... Qxe5+ {[%clk 0:00:03.7]} 62.
Kxe5 {[%clk 0:00:07.5]} 62... b3 {[%clk 0:00:04.6]} 63. f7 {[%clk 0:00:08.2]}
63... b2 {[%clk 0:00:05.5]} 64. f8=Q {[%clk 0:00:08.6]} 64... b1=Q {[%clk
0:00:06.4]} 65. Qf4+ {[%clk 0:00:08.8]} 65... Qb4 {[%clk 0:00:06.3]} 66. Qf1
{[%clk 0:00:08.5]} 66... Qb5+ {[%clk 0:00:06.6]} 67. Qxb5+ {[%clk 0:00:06.3]}
67... axb5 {[%clk 0:00:07.5]} 0-1

[Event "Early-Titled-Tuesday-Blitz-August-29-2023"]
[Site "Chess.com"]
[Date "2023.08.29"]
[Round "5"]
[White "fabianvivasz"]
[Black "Irina_Mikhaylova"]
[Result "1-0"]
[WhiteElo "2435"]
[BlackElo "2274"]
[TimeControl "180+1"]
[EndTime "8:56:45 PDT"]
[Termination "fabianvivasz won by checkmate"]

1. e4 {[%clk 0:03:00.9]} 1... c5 {[%clk 0:02:56.7]} 2. Nf3 {[%clk 0:03:00.6]}
2... Nc6 {[%clk 0:02:54.1]} 3. d4 {[%clk 0:02:58.2]} 3... cxd4 {[%clk
0:02:53.9]} 4. Nxd4 {[%clk 0:02:59.1]} 4... e5 {[%clk 0:02:52.3]} 5. Nb5 {[%clk
0:02:58.5]} 5... d6 {[%clk 0:02:52.5]} 6. c4 {[%clk 0:02:55.8]} 6... Be7 {[%clk
0:02:50.6]} 7. N1c3 {[%clk 0:02:43.5]} 7... a6 {[%clk 0:02:49.7]} 8. Na3 {[%clk
0:02:43.4]} 8... Be6 {[%clk 0:02:48]} 9. Be2 {[%clk 0:02:37.7]} 9... Bg5 {[%clk
0:02:44.4]} 10. O-O {[%clk 0:02:09.8]} 10... Bxc1 {[%clk 0:02:42.7]} 11. Rxc1
{[%clk 0:02:10.7]} 11... Nf6 {[%clk 0:02:40.9]} 12. Nc2 {[%clk 0:02:02.8]} 12...
O-O {[%clk 0:02:40.1]} 13. Qd2 {[%clk 0:01:46.8]} 13... Qb6 {[%clk 0:02:37.5]}
14. Qxd6 {[%clk 0:01:36.6]} 14... Qxb2 {[%clk 0:01:55.1]} 15. Ne3 {[%clk
0:01:10.7]} 15... Qb4 {[%clk 0:01:40.8]} 16. Qxb4 {[%clk 0:01:04.1]} 16... Nxb4
{[%clk 0:01:40.5]} 17. Rb1 {[%clk 0:01:04.5]} 17... Nc6 {[%clk 0:01:32.9]} 18.
Rxb7 {[%clk 0:01:04.1]} 18... Na5 {[%clk 0:01:30.8]} 19. Rc7 {[%clk 0:00:54.5]}
19... Rac8 {[%clk 0:01:28.3]} 20. Rxc8 {[%clk 0:00:53.2]} 20... Rxc8 {[%clk
0:01:27.1]} 21. Rc1 {[%clk 0:00:45.8]} 21... Kf8 {[%clk 0:01:17.6]} 22. f3
{[%clk 0:00:33.7]} 22... Nd7 {[%clk 0:00:43.8]} 23. Na4 {[%clk 0:00:29.4]} 23...
Rc6 {[%clk 0:00:31.2]} 24. Kf2 {[%clk 0:00:22.4]} 24... Nc5 {[%clk 0:00:25.7]}
25. Nxc5 {[%clk 0:00:21.2]} 25... Rxc5 {[%clk 0:00:26.1]} 26. Rb1 {[%clk
0:00:20.6]} 26... g6 {[%clk 0:00:22.3]} 27. Rb6 {[%clk 0:00:19.5]} 27... Nxc4
{[%clk 0:00:20.5]} 28. Rxe6 {[%clk 0:00:08.3]} 28... Nxe3 {[%clk 0:00:20.4]} 29.
Rxa6 {[%clk 0:00:08.2]} 29... Nc2 {[%clk 0:00:19.9]} 30. Ra8+ {[%clk 0:00:08.4]}
30... Kg7 {[%clk 0:00:19.9]} 31. a4 {[%clk 0:00:08.4]} 31... Nd4 {[%clk
0:00:20.3]} 32. Bd3 {[%clk 0:00:08]} 32... Rc3 {[%clk 0:00:20.5]} 33. Bf1 {[%clk
0:00:08.2]} 33... Rc2+ {[%clk 0:00:20.5]} 34. Kg3 {[%clk 0:00:08.5]} 34... Rc1
{[%clk 0:00:20.7]} 35. Bb5 {[%clk 0:00:07.8]} 35... Ra1 {[%clk 0:00:20.8]} 36.
Bd7 {[%clk 0:00:06.9]} 36... h6 {[%clk 0:00:20.3]} 37. a5 {[%clk 0:00:06.4]}
37... h5 {[%clk 0:00:20.8]} 38. h4 {[%clk 0:00:05.5]} 38... g5 {[%clk
0:00:20.6]} 39. hxg5 {[%clk 0:00:05.4]} 39... Ne2+ {[%clk 0:00:21.2]} 40. Kf2
{[%clk 0:00:05.5]} 40... Nf4 {[%clk 0:00:21.5]} 41. a6 {[%clk 0:00:05.8]} 41...
Nd3+ {[%clk 0:00:22.1]} 42. Kg3 {[%clk 0:00:06.1]} 42... Nc5 {[%clk 0:00:22.6]}
43. Bc6 {[%clk 0:00:05.8]} 43... Nd3 {[%clk 0:00:22.9]} 44. a7 {[%clk
0:00:05.3]} 44... Nf4 {[%clk 0:00:23.3]} 45. Rg8+ {[%clk 0:00:05.1]} 45... Kxg8
{[%clk 0:00:22.8]} 46. a8=Q+ {[%clk 0:00:05.7]} 46... Rxa8 {[%clk 0:00:22.2]}
47. Bxa8 {[%clk 0:00:06.6]} 47... Kg7 {[%clk 0:00:22.4]} 48. Kh4 {[%clk
0:00:04]} 48... Nxg2+ {[%clk 0:00:22]} 49. Kxh5 {[%clk 0:00:04.6]} 49... Nf4+
{[%clk 0:00:22.5]} 50. Kg4 {[%clk 0:00:05.1]} 50... Nd3 {[%clk 0:00:22.9]} 51.
Bd5 {[%clk 0:00:04.7]} 51... f6 {[%clk 0:00:22.7]} 52. Kf5 {[%clk 0:00:04.4]}
52... fxg5 {[%clk 0:00:23]} 53. Kxg5 {[%clk 0:00:05.3]} 53... Kf8 {[%clk
0:00:22.5]} 54. Kf6 {[%clk 0:00:05.4]} 54... Ke8 {[%clk 0:00:23]} 55. Bc4 {[%clk
0:00:05.8]} 55... Nb2 {[%clk 0:00:23]} 56. Be2 {[%clk 0:00:06]} 56... Kd7 {[%clk
0:00:20.5]} 57. Kxe5 {[%clk 0:00:06.4]} 57... Ke7 {[%clk 0:00:20.9]} 58. f4
{[%clk 0:00:06.6]} 58... Na4 {[%clk 0:00:21.3]} 59. f5 {[%clk 0:00:07]} 59...
Nc3 {[%clk 0:00:21.7]} 60. f6+ {[%clk 0:00:07.4]} 60... Kf8 {[%clk 0:00:21.5]}
61. Bc4 {[%clk 0:00:08]} 61... Nd1 {[%clk 0:00:20.7]} 62. Be2 {[%clk 0:00:07.2]}
62... Ne3 {[%clk 0:00:20.6]} 63. Kf4 {[%clk 0:00:07.4]} 63... Nc2 {[%clk
0:00:19.3]} 64. e5 {[%clk 0:00:07.2]} 64... Nd4 {[%clk 0:00:19.7]} 65. Bd3
{[%clk 0:00:07.4]} 65... Ne6+ {[%clk 0:00:19.7]} 66. Kf5 {[%clk 0:00:07.6]}
66... Nd4+ {[%clk 0:00:20.3]} 67. Kg6 {[%clk 0:00:07.7]} 67... Ne6 {[%clk
0:00:20.3]} 68. Bc4 {[%clk 0:00:08]} 68... Nf4+ {[%clk 0:00:20.6]} 69. Kf5
{[%clk 0:00:08.4]} 69... Ng2 {[%clk 0:00:21]} 70. Bb3 {[%clk 0:00:07]} 70...
Ne3+ {[%clk 0:00:21.3]} 71. Ke4 {[%clk 0:00:07.5]} 71... Ng2 {[%clk 0:00:20.5]}
72. e6 {[%clk 0:00:07.6]} 72... Nh4 {[%clk 0:00:18.8]} 73. e7+ {[%clk
0:00:07.8]} 73... Ke8 {[%clk 0:00:19.4]} 74. Ba4+ {[%clk 0:00:08.3]} 74... Kf7
{[%clk 0:00:20]} 75. e8=Q+ {[%clk 0:00:08.9]} 75... Kxf6 {[%clk 0:00:20.7]} 76.
Qd8+ {[%clk 0:00:09.5]} 76... Kg6 {[%clk 0:00:20.6]} 77. Qxh4 {[%clk 0:00:09.9]}
77... Kg7 {[%clk 0:00:20.4]} 78. Qf4 {[%clk 0:00:10.1]} 78... Kg6 {[%clk
0:00:20.8]} 79. Qf5+ {[%clk 0:00:10.4]} 79... Kg7 {[%clk 0:00:21.3]} 80. Ke5
{[%clk 0:00:10.9]} 80... Kg8 {[%clk 0:00:21.8]} 81. Qd7 {[%clk 0:00:11.1]} 81...
Kf8 {[%clk 0:00:21.9]} 82. Kf6 {[%clk 0:00:12]} 82... Kg8 {[%clk 0:00:22.3]} 83.
Qg7# {[%clk 0:00:12.9]} 1-0